bitfinex/quotes_ETHUSD_20250628
["timestamp","ask_amount","ask_price","bid_price","bid_amount"]
[1751077152878,0.2064,2418.7,2418.4,10.79293629]
[1751077153074,0.12920125,2418.6,2418.4,10.79293629]
[1751077153379,0.2064,2418.7,2418.4,10.79293629]
[1751077153678,0.12920124,2418.6,2418.4,10.79293629]
[1751077153972,0.2064,2418.7,2418.4,10.79293629]
[1751077154170,0.12920125,2418.6,2418.4,10.79293629]
[1751077154375,0.2064,2418.7,2418.4,10.79293629]
[1751077154576,0.12920125,2418.6,2418.4,10.79293629]
[1751077154778,0.2064,2418.7,2418.4,10.79293629]
[1751077154964,0.12920125,2418.6,2418.4,10.79293629]
[1751077155276,0.2064,2418.7,2418.4,10.79293629]
[1751077155446,0.12920124,2418.6,2418.4,10.79293629]
[1751077155744,0.2064,2418.7,2418.4,10.79293629]
[1751077155945,0.12920124,2418.6,2418.4,10.79293629]
[1751077156147,0.2064,2418.7,2418.4,10.79293629]
[1751077156357,0.12920125,2418.6,2418.4,10.79293629]
[1751077156567,0.2064,2418.7,2418.4,10.79293629]
[1751077156753,0.12920124,2418.6,2418.4,10.79293629]
[1751077156952,0.2064,2418.7,2418.4,10.79293629]
[1751077157161,7.51720269,2418.6,2418.2,0.4385]
[1751077157349,0.12920127,2418.5,2418.3,6.658]
[1751077157684,0.2064,2418.4,2418.3,6.658]
[1751077159289,0.2064,2418.4,2418.2,4.13519307]
[1751077159490,0.2064,2418.4,2418.3,6.658]
[1751077162700,0.2064,2418.4,2418.0,4.57408509]
[1751077162997,1.15731075,2418.3,2418.1,6.658]
[1751077163159,1.0281,2418.3,2418.1,6.658]
[1751077167974,1.0281,2418.3,2417.9,4.13576855]
[1751077168178,1.0281,2418.3,2418.2,6.658]
[1751077168428,1.15731668,2418.3,2418.2,6.658]
[1751077168584,5.8704492,2418.3,2418.2,6.658]
[1751077168912,1.73528037,2418.3,2418.2,6.658]
[1751077170409,1.73528038,2418.3,2418.2,6.658]
[1751077172327,1.15731669,2418.3,2418.2,6.658]
[1751077172606,0.33561669,2418.3,2418.2,6.658]
[1751077179585,0.33561669,2418.3,2418.2,10.79330725]
[1751077179782,0.12921669,2418.3,2418.2,10.79330725]
[1751077179986,0.2064,2418.6,2418.4,4.1349582]
[1751077180211,0.12920697,2418.5,2418.4,4.1349582]
[1751077180418,0.12920697,2418.5,2418.4,10.7929582]
[1751077181886,0.2064,2418.6,2418.5,4.13479429]
[1751077182191,0.33560182,2418.6,2418.5,4.13479429]
[1751077182398,0.2064,2418.6,2418.5,4.13479429]
[1751077185321,0.2074,2418.8,2418.6,4.13455196]
[1751077185619,0.2074,2418.8,2418.7,6.657]
[1751077185920,0.33659708,2418.8,2418.7,6.657]
[1751077188623,0.3365963,2418.8,2418.7,6.657]
[1751077190249,0.3365963,2418.8,2418.7,10.79145239]
[1751077190442,0.3365963,2418.8,2418.7,6.657]
[1751077192144,0.3365963,2418.8,2418.7,10.79145239]
[1751077192453,0.3365963,2418.8,2418.7,6.657]
[1751077195548,0.3365963,2418.8,2418.7,10.79145239]
[1751077195754,0.001,2418.8,2418.7,10.99785239]
[1751077196453,0.001,2418.8,2418.7,11.22995239]
[1751077205576,0.001,2418.8,2418.7,21.22995239]
[1751077207091,0.001,2418.8,2418.7,21.77995239]
[1751077212089,0.001,2418.8,2418.7,29.16795383]
[1751077214386,0.001,2418.8,2418.7,21.77995239]
[1751077216289,0.001,2418.8,2418.7,27.12995239]
[1751077221977,0.001,2419.7,2419.0,4.68393964]
[1751077222207,0.001,2419.7,2419.6,14.91501453]
[1751077222409,0.001,2419.7,2419.6,28.22341453]
[1751077222612,0.001,2419.7,2419.6,27.44231453]
[1751077223293,0.001,2419.7,2419.6,27.99231453]
[1751077227891,0.001,2419.7,2419.6,23.24231453]
[1751077229320,0.001,2419.7,2419.6,23.47441453]
[1751077230484,0.001,2419.7,2419.6,24.38705526]
[1751077231076,0.001,2419.7,2419.6,29.13705526]
[1751077231283,0.001,2419.7,2419.6,53.97460726]
[1751077231483,0.001,2419.7,2419.6,62.88705526]
[1751077232612,0.001,2419.7,2419.6,32.88705526]
[1751077232784,0.001,2419.7,2419.6,62.88705526]
[1751077232988,0.001,2419.7,2419.6,37.35516226]
[1751077233185,0.001,2419.7,2419.6,28.54905526]
[1751077233822,0.001,2419.7,2419.6,32.03176726]
[1751077234196,0.001,2419.7,2419.6,28.54905526]
[1751077234401,0.001,2419.7,2419.6,20.18405526]
[1751077234598,0.001,2419.7,2419.6,28.56205526]
[1751077234820,0.001,2419.7,2419.6,10.79631453]
[1751077235001,0.001,2419.7,2419.6,28.01831453]
[1751077235196,0.001,2419.7,2419.6,11.34631453]
[1751077235406,0.001,2419.7,2419.6,18.02031453]
[1751077235607,0.001,2419.7,2419.6,28.62031453]
[1751077236825,0.001,2419.7,2419.6,23.87031453]
[1751077238534,0.001,2419.7,2419.6,17.19631453]
[1751077238741,0.001,2419.7,2419.6,23.86931453]
[1751077247812,0.001,2419.7,2419.6,28.92646174]
[1751077248736,0.001,2419.7,2419.6,59.15578974]
[1751077249535,0.001,2419.7,2419.6,52.65925974]
[1751077249726,0.001,2419.7,2419.6,52.37765574]
[1751077250140,0.001,2419.7,2419.6,45.18393174]
[1751077250338,0.001,2419.7,2419.6,38.36086374]
[1751077250639,0.001,2419.7,2419.6,32.18276374]
[1751077250840,0.001,2419.7,2419.6,34.20276374]
[1751077251623,0.001,2419.7,2419.6,32.18276374]
[1751077251824,0.001,2419.7,2419.6,31.71233374]
[1751077253951,0.001,2419.7,2419.6,57.23481274]
[1751077254539,0.001,2419.7,2419.6,56.83466774]
[1751077254849,0.001,2419.7,2419.6,57.50973074]
[1751077255023,0.001,2419.7,2419.6,55.86846474]
[1751077255226,0.001,2419.7,2419.6,54.92728274]
[1751077255428,0.001,2419.7,2419.6,53.50783874]
[1751077255830,0.001,2419.7,2419.6,53.38862174]
[1751077256030,0.001,2419.7,2419.6,51.36862174]
[1751077256232,0.001,2419.7,2419.6,35.88676374]
[1751077256455,0.001,2419.7,2419.6,43.27476518]
[1751077256949,0.001,2419.7,2419.6,55.88105318]
[1751077257353,0.001,2419.7,2419.6,36.54379118]
[1751077257653,0.001,2419.7,2419.6,55.88105318]
[1751077257952,0.001,2419.7,2419.6,55.68605318]
[1751077258149,0.001,2419.7,2419.6,41.08605318]
[1751077258352,0.001,2419.7,2419.6,40.61572318]
[1751077258818,0.001,2419.7,2419.6,20.54368974]
[1751077259024,0.001,2419.7,2419.6,28.91668974]
[1751077259348,0.001,2419.7,2419.6,28.61231453]
[1751077260428,0.001,2419.7,2419.6,23.86231453]
[1751077265938,0.001,2419.7,2419.6,11.39891453]
[1751077265939,0.8281,2419.7,2419.6,11.39891453]
[1751077266157,0.001,2419.7,2419.6,21.39891453]
[1751077266671,0.001,2419.7,2419.6,14.73291453]
[1751077266858,0.001,2419.7,2419.6,11.95091453]
[1751077267053,0.001,2419.7,2419.6,21.35491453]
[1751077268382,0.001,2419.7,2419.6,28.74291597]
[1751077268870,0.001,2419.7,2419.6,19.34291597]
[1751077269648,0.001,2419.7,2419.6,19.6451469]
[1751077270762,0.001,2419.7,2419.6,34.9436609]
[1751077270956,0.001,2419.7,2419.6,39.6936609]
[1751077272472,0.001,2419.7,2419.6,64.6272469]
[1751077272673,0.001,2419.7,2419.6,68.9772469]
[1751077274582,0.001,2419.7,2419.6,50.9208469]
[1751077275493,0.001,2419.7,2419.6,34.6342469]
[1751077275665,0.001,2419.7,2419.6,56.4589199]
[1751077275980,0.001,2419.7,2419.6,31.29500046]
[1751077278582,0.001,2419.7,2419.6,54.31356246]
[1751077279487,0.001,2419.7,2419.6,59.15564546]
[1751077279680,0.001,2419.7,2419.6,55.92000146]
[1751077279888,0.001,2419.7,2419.6,49.19731046]
[1751077280481,0.001,2419.7,2419.6,59.15564546]
[1751077282686,0.001,2419.7,2419.6,63.50564546]
[1751077283088,0.001,2419.7,2419.6,50.39554946]
[1751077283277,0.001,2419.7,2419.6,46.80577446]
[1751077283586,0.001,2419.7,2419.6,51.15577446]
[1751077283764,0.001,2419.7,2419.6,63.50564546]
[1751077284567,0.001,2420.7,2420.6,14.13120713]
[1751077284868,0.001,2420.7,2420.6,20.81520713]
[1751077289294,0.001,2420.7,2420.6,20.81920713]
[1751077289295,0.7874,2420.7,2420.6,20.81920713]
[1751077289660,0.7874,2420.7,2420.6,10.81920713]
[1751077293594,0.001,2420.7,2420.6,10.81920713]
[1751077294505,0.001,2420.7,2420.6,11.02560713]
[1751077310324,21.51757559,2421.6,2420.6,11.02560713]
[1751077310325,14.51047559,2421.6,2421.0,4.13037011]
[1751077310628,0.2064,2421.3,2421.1,6.682]
[1751077312012,0.2064,2421.3,2420.9,0.2064]
[1751077312189,7.38800144,2421.4,2421.0,6.681]
[1751077312190,0.2064,2421.2,2421.0,6.681]
[1751077313392,0.7897,2421.1,2421.0,6.681]
[1751077317927,0.7897,2421.1,2420.6,10.0]
[1751077317928,4.92020378,2421.1,2420.6,4.13116163]
[1751077318219,1.0272,2420.9,2420.7,6.682]
[1751077318803,1.0272,2420.9,2420.7,10.81302889]
[1751077319028,1.0272,2420.9,2420.7,6.682]
[1751077320193,1.0272,2420.9,2420.7,10.81297878]
[1751077321628,1.0272,2420.9,2420.7,6.682]
[1751077321926,1.0272,2420.9,2420.7,10.81300992]
[1751077322136,1.0272,2420.9,2420.8,0.6]
[1751077322729,1.0272,2420.9,2420.8,4.73086582]
[1751077323023,0.8208,2420.9,2420.8,4.73086582]
[1751077324429,0.8208,2420.9,2420.8,0.6]
[1751077325631,0.8208,2420.9,2420.8,4.73086582]
[1751077326329,0.8208,2420.9,2420.8,0.6]
[1751077329333,0.8208,2420.9,2420.8,4.73086582]
[1751077329832,0.8121,2421.1,2420.8,4.73086582]
[1751077330032,1.32695916,2421.1,2420.9,6.674]
[1751077330237,0.2064,2421.0,2420.9,6.674]
[1751077330527,1.0185,2421.0,2420.9,6.674]
[1751077333547,0.2064,2421.0,2420.8,55.58078]
[1751077333836,4.94339519,2420.9,2420.8,10.4404976]
[1751077334143,6.58958921,2420.9,2420.8,10.4404976]
[1751077334843,2.45889402,2420.9,2420.8,10.4404976]
[1751077335729,6.58958921,2420.9,2420.8,10.4404976]
[1751077336336,13.97759065,2420.9,2420.8,10.4404976]
[1751077337617,6.58958921,2420.9,2420.8,10.4404976]
[1751077338649,2.45889402,2420.9,2420.8,10.4404976]
[1751077338845,2.45889402,2420.9,2420.8,17.1304976]
[1751077338846,0.8127,2420.9,2420.8,17.1304976]
[1751077340858,4.65013376,2421.2,2420.8,17.1304976]
[1751077340859,0.8099,2421.1,2420.8,17.1304976]
[1751077342121,0.8099,2421.1,2420.8,21.26136042]
[1751077342353,0.8099,2421.1,2420.8,17.1304976]
[1751077343055,5.43439857,2421.1,2420.8,17.1304976]
[1751077343551,4.94699519,2420.9,2420.8,10.4404976]
[1751077343720,4.94699519,2420.9,2420.8,17.1314976]
[1751077344536,4.94699519,2420.9,2420.8,10.4404976]
[1751077346044,4.94699519,2420.9,2420.8,132.2196976]
[1751077346247,6.64294973,2420.9,2420.8,132.2196976]
[1751077346933,14.03095117,2420.9,2420.8,132.2196976]
[1751077349539,15.73995117,2420.9,2420.8,132.2196976]
[1751077356445,15.74095117,2420.9,2420.8,132.2196976]
[1751077360947,15.74095117,2420.9,2420.8,113.60259463]
[1751077365548,15.74095117,2420.9,2420.8,109.64385551]
[1751077365549,26.29095117,2420.9,2420.8,109.64385551]
[1751077366051,26.29095117,2420.9,2420.8,106.60449078]
[1751077366250,26.29095117,2420.9,2420.8,96.72118648]
[1751077367248,26.60811488,2420.9,2420.8,96.72118648]
[1751077370151,26.60811488,2420.9,2420.8,93.53517412]
[1751077373998,32.98095117,2420.9,2420.8,93.53517412]
[1751077374851,24.03095117,2420.9,2420.8,93.53517412]
[1751077375093,32.43995117,2420.9,2420.8,93.53517412]
[1751077380909,24.23264973,2420.9,2420.8,93.53517412]
[1751077382206,17.54164973,2420.9,2420.8,93.53517412]
[1751077382410,22.53469519,2420.9,2420.8,93.53517412]
[1751077383087,30.72129663,2420.9,2420.8,93.53517412]
[1751077395634,29.92269663,2420.9,2420.8,93.53517412]
[1751077396006,30.47269663,2420.9,2420.8,93.53517412]
[1751077396217,34.0610896,2420.9,2420.8,93.53517412]
[1751077397431,34.0600896,2420.9,2420.8,93.53517412]
[1751077397591,33.5100896,2420.9,2420.8,93.53517412]
[1751077397918,26.12208816,2420.9,2420.8,93.53517412]
[1751077399229,22.53369519,2420.9,2420.8,93.53517412]
[1751077399428,14.13069519,2420.9,2420.8,93.53517412]
[1751077399732,15.84769519,2420.9,2420.8,93.53517412]
[1751077401501,4.13069519,2420.9,2420.8,93.53517412]
[1751077401701,5.84769519,2420.9,2420.8,93.53517412]
[1751077403399,4.13069519,2420.9,2420.8,100.22017412]
[1751077405018,10.0,2421.1,2420.8,100.22017412]
[1751077405204,4.13068895,2421.0,2420.9,6.683]
[1751077405811,4.13068895,2421.0,2420.9,7.5003]
[1751077406005,4.13068895,2421.0,2420.9,6.683]
[1751077407447,4.33709519,2420.9,2420.8,100.21817412]
[1751077408731,14.48237519,2420.9,2420.8,93.53517412]
[1751077409434,7.09437375,2420.9,2420.8,93.53517412]
[1751077412137,14.48237519,2420.9,2420.8,93.53517412]
[1751077412343,15.24907519,2420.9,2420.8,93.53517412]
[1751077414556,14.48237519,2420.9,2420.8,93.53517412]
[1751077414926,7.09437375,2420.9,2420.8,93.53517412]
[1751077415127,4.33709519,2420.9,2420.8,93.53517412]
[1751077423728,6.04909519,2420.9,2420.8,93.53517412]
[1751077425461,4.33709519,2420.9,2420.8,100.98047412]
[1751077426260,4.33709519,2420.9,2420.8,100.21517412]
[1751077426562,5.99859998,2420.9,2420.8,100.21517412]
[1751077426932,5.99859998,2420.9,2420.8,93.53517412]
[1751077427132,5.99859998,2420.9,2420.8,100.21417412]
[1751077428273,5.84210228,2421.3,2420.9,0.8082]
[1751077428473,5.84210228,2421.3,2421.1,0.8082]
[1751077428764,5.84210228,2421.3,2421.2,6.688]
[1751077429166,5.84210228,2421.3,2421.1,7.4962]
[1751077429379,4.13010228,2421.3,2421.1,7.4962]
[1751077429577,5.84210228,2421.3,2421.1,7.4962]
[1751077430138,4.13018338,2421.2,2421.1,7.4962]
[1751077430632,5.84208015,2421.3,2421.1,7.4962]
[1751077434565,1.712,2421.3,2421.1,7.4962]
[1751077435072,5.84212181,2421.3,2421.1,7.4962]
[1751077435666,4.13012181,2421.3,2421.1,7.4962]
[1751077437665,4.13018338,2421.2,2421.1,7.4962]
[1751077440080,4.03018338,2421.2,2421.1,7.4962]
[1751077440482,4.13035397,2421.1,2421.0,0.7741]
[1751077440670,4.13025763,2421.2,2421.1,6.68]
[1751077442853,4.13009268,2421.3,2421.1,6.68]
[1751077443584,4.03009268,2421.3,2421.1,6.68]
[1751077444480,4.13018338,2421.2,2421.1,6.68]
[1751077445800,5.84188863,2421.4,2421.1,6.68]
[1751077445977,4.1300128,2421.3,2421.1,6.68]
[1751077446172,4.13018338,2421.2,2421.1,6.68]
[1751077447011,4.13009622,2421.3,2421.1,6.68]
[1751077447879,4.13018338,2421.2,2421.1,6.68]
[1751077451802,4.13059032,2421.0,2420.8,93.53517412]
[1751077452000,5.84269519,2420.9,2420.8,93.53517412]
[1751077456022,4.13053805,2421.0,2420.8,93.53517412]
[1751077456222,5.84253805,2421.0,2420.8,93.53517412]
[1751077456396,4.13053805,2421.0,2420.8,94.34087412]
[1751077456598,5.84243069,2421.1,2420.8,94.34087412]
[1751077456996,5.84243069,2421.1,2420.9,6.682]
[1751077457194,4.13043069,2421.1,2420.9,6.682]
[1751077457431,5.84243069,2421.1,2420.9,6.682]
[1751077457605,0.2064,2421.0,2420.9,6.682]
[1751077463346,4.33692457,2421.0,2420.9,6.682]
[1751077463834,0.2064,2421.0,2420.9,6.682]
[1751077464203,4.33692457,2421.0,2420.9,6.682]
[1751077468637,4.13069519,2420.9,2420.8,100.21317412]
[1751077473558,5.05927843,2421.0,2420.8,100.21317412]
[1751077473740,4.1306104,2421.0,2420.8,100.21317412]
[1751077477448,4.13069519,2420.9,2420.8,100.21317412]
[1751077477815,4.13060871,2421.0,2420.8,100.21317412]
[1751077478938,4.13044597,2421.1,2420.8,100.21317412]
[1751077479316,0.2064,2420.9,2420.8,100.21317412]
[1751077491284,0.2064,2421.1,2420.9,0.7906]
[1751077491448,0.2064,2421.1,2421.0,6.67]
[1751077494693,4.88001946,2421.6,2421.0,6.67]
[1751077494868,0.2064,2421.3,2421.2,0.8038]
[1751077495181,0.2064,2421.3,2421.2,7.4738]
[1751077495544,0.2064,2421.3,2421.2,11.60398338]
[1751077499550,0.001,2421.7,2421.3,4.13000187]
[1751077499758,0.2064,2421.6,2421.4,6.669]
[1751077500060,0.001,2421.7,2421.4,7.4728]
[1751077500256,0.001,2421.7,2421.5,6.68]
[1751077505290,0.2064,2421.6,2421.5,6.68]
[1751077510800,0.2064,2421.6,2421.5,7.4705]
[1751077511885,4.12969281,2421.5,2421.2,0.2064]
[1751077512202,0.2064,2421.4,2421.3,6.675]
[1751077512801,0.2064,2421.4,2421.3,7.275]
[1751077515505,4.33624224,2421.4,2421.3,0.6]
[1751077515702,0.2064,2421.4,2421.3,7.273]
[1751077516008,0.2064,2421.4,2421.3,6.673]
[1751077517993,0.2064,2421.4,2421.0,5.12735007]
[1751077518293,0.2064,2421.4,2421.1,6.671]
[1751077519174,4.3363007,2421.4,2421.1,6.671]
[1751077519878,4.3363007,2421.4,2421.0,0.9969]
[1751077520082,4.3363007,2421.4,2421.2,6.671]
[1751077521920,4.1300128,2421.3,2421.2,6.673]
[1751077522099,4.1300128,2421.3,2421.0,0.9969]
[1751077522299,0.2064,2421.2,2421.1,6.673]
[1751077533548,0.2064,2421.2,2421.1,10.80335397]
[1751077534853,0.2064,2421.2,2421.1,11.61345397]
[1751077535008,0.001,2421.7,2421.4,4.93982768]
[1751077535209,0.2074,2421.7,2421.5,6.667]
[1751077535406,0.2074,2421.7,2421.5,10.79664549]
[1751077536126,0.001,2421.7,2421.6,4.12950115]
[1751077538479,0.001,2421.7,2421.6,10.79750115]
[1751077540259,0.001,2421.7,2421.6,11.58920115]
[1751077540567,0.001,2421.7,2421.6,11.79560115]
[1751077541061,0.001,2421.7,2421.6,12.39560115]
[1751077541262,0.001,2421.7,2421.6,23.11560259]
[1751077541455,0.001,2421.7,2421.6,24.10460115]
[1751077542261,0.001,2421.7,2421.6,31.49260259]
[1751077547665,0.001,2421.7,2421.6,24.10460115]
[1751077548987,0.001,2421.7,2421.6,10.6]
[1751077549137,0.001,2421.7,2421.6,17.268]
[1751077549337,0.001,2421.7,2421.6,7.268]
[1751077549537,0.001,2421.7,2421.6,0.6]
[1751077549736,0.001,2421.7,2421.6,7.268]
[1751077550773,0.001,2421.7,2421.6,0.6]
[1751077550946,4.95913063,2421.7,2421.6,7.267]
[1751077551269,5.86804678,2421.7,2421.6,6.667]
[1751077551576,1.73871615,2421.7,2421.6,6.667]
[1751077551875,0.8298,2421.7,2421.6,6.667]
[1751077552567,0.001,2421.7,2421.6,6.667]
[1751077554177,0.001,2421.7,2421.6,10.79650115]
[1751077554488,0.001,2421.7,2421.6,6.667]
[1751077556681,0.001,2421.7,2421.6,10.79650115]
[1751077558397,0.001,2421.7,2421.2,0.7741]
[1751077558598,4.92028457,2421.6,2421.3,6.669]
[1751077558898,4.129685,2421.5,2421.4,6.672]
[1751077559504,6.56416444,2421.6,2421.4,6.672]
[1751077560209,2.43457765,2421.6,2421.4,6.672]
[1751077560410,4.92021265,2421.6,2421.4,6.672]
[1751077560711,0.7907,2421.6,2421.4,6.672]
[1751077565015,4.13033209,2421.7,2421.4,6.672]
[1751077566289,0.001,2421.7,2421.4,6.672]
[1751077566969,4.13035401,2421.7,2421.4,6.672]
[1751077567170,5.20914333,2421.7,2421.4,6.672]
[1751077569774,1.07978932,2421.7,2421.4,6.672]
[1751077570772,0.2064,2421.5,2421.4,6.672]
[1751077570972,0.2064,2421.5,2421.4,10.80184224]
[1751077571170,0.2064,2421.5,2421.4,6.672]
[1751077573013,0.2064,2421.5,2421.4,10.80184224]
[1751077573208,0.2064,2421.6,2421.4,6.672]
[1751077573423,0.2064,2421.6,2421.5,4.12967169]
[1751077574281,0.2074,2421.7,2421.6,4.12950115]
[1751077575995,0.2074,2421.7,2421.5,4.12960177]
[1751077578009,0.2074,2421.7,2421.4,11.60677119]
[1751077578217,0.2074,2421.7,2421.5,4.12967023]
[1751077578517,0.2074,2421.7,2421.6,0.6]
[1751077579634,0.2074,2421.7,2421.4,6.672]
[1751077579997,0.782,2421.6,2421.3,0.2064]
[1751077580191,0.2064,2421.5,2421.4,6.667]
[1751077585826,0.2064,2421.5,2421.0,1.0114]
[1751077585827,4.33612891,2421.5,2421.0,4.93542299]
[1751077586019,4.33612891,2421.5,2421.1,6.667]
[1751077586020,0.2064,2421.3,2421.1,6.667]
[1751077586602,0.2064,2421.3,2421.1,10.79732283]
[1751077588336,0.2064,2421.3,2421.2,0.6]
[1751077591035,0.2064,2421.3,2421.2,7.267]
[1751077592839,1.0189,2421.3,2421.2,7.267]
[1751077593134,1.0189,2421.3,2421.2,6.667]
[1751077593638,0.2064,2421.3,2421.2,6.667]
[1751077604050,0.001,2421.7,2421.2,11.55188338]
[1751077604353,0.2064,2421.5,2421.3,4.12999223]
[1751077605724,0.2064,2421.5,2421.3,4.13000347]
[1751077606560,0.001,2421.7,2421.4,4.12984224]
[1751077606856,0.2074,2421.7,2421.5,6.667]
[1751077608523,0.2074,2421.7,2421.5,10.79664033]
[1751077610360,0.2074,2421.7,2421.5,11.39664033]
[1751077610660,0.2074,2421.7,2421.6,4.12950115]
[1751077612632,0.001,2421.7,2421.6,4.12950115]
[1751077617663,0.001,2421.7,2421.6,4.92690115]
[1751077621371,0.001,2421.7,2421.6,5.52690115]
[1751077622880,0.001,2421.7,2421.6,4.92690115]
[1751077623585,0.001,2421.7,2421.6,4.12950115]
[1751077625071,0.001,2421.7,2421.6,4.33590115]
[1751077626368,0.001,2421.7,2421.6,4.93590115]
[1751077626767,0.001,2421.7,2421.6,5.76880115]
[1751077628262,0.001,2421.7,2421.6,5.16880115]
[1751077628552,0.001,2421.7,2421.6,4.33590115]
[1751077628748,0.001,2421.7,2421.6,0.2064]
[1751077629056,0.001,2421.7,2421.6,6.665]
[1751077632846,0.7733,2421.7,2421.6,6.665]
[1751077634576,0.7733,2421.7,2421.4,0.2064]
[1751077634881,0.2064,2421.6,2421.5,6.665]
[1751077638196,0.2064,2421.6,2421.2,0.2064]
[1751077638352,4.12971811,2421.5,2421.2,0.2064]
[1751077638562,0.43361181,2421.4,2421.3,6.665]
[1751077638874,4.94652506,2421.5,2421.3,6.665]
[1751077639476,0.8168,2421.5,2421.3,6.665]
[1751077639652,1.0232,2421.5,2421.3,6.665]
[1751077641965,0.2064,2421.5,2421.4,4.12984224]
[1751077642154,0.2064,2421.6,2421.4,4.12984224]
[1751077642350,0.2064,2421.6,2421.5,4.12967169]
[1751077643384,0.001,2421.7,2421.5,4.12958815]
[1751077643590,0.001,2421.7,2421.6,6.665]
[1751077644387,0.001,2421.7,2421.6,10.79450115]
[1751077647286,0.001,2421.7,2421.6,6.665]
[1751077652989,0.001,2421.7,2421.6,10.79450115]
[1751077653362,0.001,2421.7,2421.6,6.665]
[1751077658485,0.001,2421.7,2421.6,10.79450115]
[1751077665776,0.001,2421.7,2421.6,6.665]
[1751077670600,0.001,2421.7,2421.4,15.08867369]
[1751077670801,0.001,2421.7,2421.6,6.664]
[1751077672585,0.001,2421.7,2421.6,10.79350115]
[1751077675912,0.001,2421.7,2421.6,6.664]
[1751077683801,0.001,2421.7,2421.6,10.79350115]
[1751077685636,0.001,2421.7,2421.6,6.664]
[1751077686310,0.7742,2421.7,2421.6,6.664]
[1751077687139,0.7742,2421.7,2421.1,0.781]
[1751077687433,0.7742,2421.7,2421.2,20.99956103]
[1751077687434,0.2064,2421.6,2421.2,20.99956103]
[1751077687633,0.2064,2421.6,2421.3,10.0]
[1751077687834,0.2064,2421.6,2421.4,6.663]
[1751077688841,0.2064,2421.6,2421.2,10.2064]
[1751077689136,0.2064,2421.6,2421.3,6.663]
[1751077690305,4.9029817,2421.5,2421.1,11.704]
[1751077690508,5.1093817,2421.5,2421.2,6.663]
[1751077691137,0.9796,2421.5,2421.2,6.663]
[1751077691504,0.9796,2421.5,2421.2,10.79308448]
[1751077691914,0.9796,2421.5,2421.2,6.663]
[1751077694647,0.9796,2421.5,2421.3,6.663]
[1751077699048,5.10931641,2421.5,2421.3,6.663]
[1751077699243,5.10931641,2421.5,2421.1,10.0]
[1751077699447,5.10931641,2421.5,2421.2,6.663]
[1751077700570,0.9796,2421.5,2421.2,10.7931655]
[1751077701057,0.9796,2421.5,2421.2,6.663]
[1751077702027,5.10930791,2421.5,2421.2,6.663]
[1751077704048,0.9796,2421.5,2421.2,6.663]
[1751077704252,0.9796,2421.5,2421.2,10.79311317]
[1751077704429,0.2064,2421.5,2421.2,10.79311317]
[1751077705518,0.2064,2421.5,2421.3,4.12998682]
[1751077706020,0.8023,2421.7,2421.6,4.12950115]
[1751077706021,0.001,2421.7,2421.6,4.12950115]
[1751077706242,0.001,2421.7,2421.6,10.79250115]
[1751077714265,0.001,2421.7,2421.6,6.663]
[1751077718464,0.001,2421.7,2421.6,10.79250115]
[1751077719173,0.001,2421.7,2421.6,6.663]
[1751077719374,0.001,2421.7,2421.6,10.79250115]
[1751077721371,0.001,2421.7,2421.6,6.663]
[1751077722976,0.001,2421.7,2421.6,10.79250115]
[1751077725478,0.001,2421.7,2421.6,6.663]
[1751077727300,0.001,2421.7,2421.6,10.79250115]
[1751077727663,0.001,2421.7,2421.6,6.663]
[1751077736493,0.001,2421.7,2421.6,10.79250115]
[1751077742314,0.001,2421.7,2421.6,10.99890115]
[1751077753903,0.001,2421.7,2421.6,21.78130115]
[1751077758594,0.001,2421.7,2421.6,22.38130115]
[1751077762399,0.001,2421.7,2421.6,15.71830115]
[1751077762603,0.001,2421.7,2421.6,24.08030115]
[1751077768535,0.001,2421.7,2421.6,16.63790115]
[1751077768706,0.001,2421.7,2421.6,23.29690115]
[1751077771137,0.6623,2422.1,2421.8,4.12901034]
[1751077771349,0.6623,2422.1,2421.9,6.659]
[1751077771706,0.6623,2422.1,2421.9,10.78796722]
[1751077772735,0.6623,2422.1,2421.9,6.659]
[1751077777936,0.2064,2422.2,2421.9,10.7879036]
[1751077778144,0.2064,2422.2,2422.0,4.12874159]
[1751077778439,0.2064,2422.2,2422.1,6.659]
[1751077779042,0.9767895,2422.3,2422.1,6.659]
[1751077779540,0.9767895,2422.3,2422.1,10.78764869]
[1751077780355,0.2251895,2422.3,2422.1,10.78764869]
[1751077783459,0.2251895,2422.3,2422.2,4.12847824]
[1751077784458,0.2251895,2422.3,2422.1,10.78756248]
[1751077784655,0.2251895,2422.3,2422.1,10.78761447]
[1751077784954,0.2251895,2422.3,2422.2,4.12847824]
[1751077792453,0.2251895,2422.3,2422.1,10.99397743]
[1751077793853,0.2251895,2422.3,2422.2,6.658]
[1751077794058,2.13914247,2422.3,2422.2,6.658]
[1751077795369,6.26747624,2422.3,2422.2,6.658]
[1751077795857,2.13914247,2422.3,2421.8,4.33549006]
[1751077796028,0.2064,2422.2,2421.9,10.78696457]
[1751077796228,0.2064,2422.2,2421.9,4.12896457]
[1751077796428,0.2064,2422.2,2422.0,6.658]
[1751077797152,0.2064,2422.2,2421.9,4.12896457]
[1751077797460,0.2064,2422.2,2422.0,6.658]
[1751077797839,0.2064,2422.2,2422.1,6.658]
[1751077800359,5.79977553,2422.2,2422.1,6.658]
[1751077800663,1.67118726,2422.2,2422.1,6.658]
[1751077801163,1.62118726,2422.2,2422.1,6.658]
[1751077801364,0.9737,2422.2,2422.1,6.658]
[1751077802566,0.1564,2422.2,2422.1,6.658]
[1751077804066,5.10230202,2422.2,2422.0,6.658]
[1751077804268,0.8173,2422.2,2422.0,6.658]
[1751077804466,0.51708827,2422.1,2422.0,6.658]
[1751077804769,0.8173,2422.2,2422.0,6.658]